fUST/lending_fUST_20240822
["ID","MTS","AMOUNT","RATE_DAILY","PERIOD"]
[335510550,1724296232446,-2015.7991939,0.00017678,2]
[335510552,1724296232456,-4504.82276449,0.00017898,2]
[335510664,1724296238472,-5838.69063971,0.00017898,2]
[335510667,1724296238484,-250.0,0.00018179,2]
[335510669,1724296238495,-250.0,0.00018229,2]
[335510671,1724296238508,-1674.77764801,0.00018279,2]
[335510673,1724296238519,-250.0,0.00018279,2]
[335510676,1724296238531,-250.0,0.00018329,2]
[335510678,1724296238542,-250.0,0.00018379,2]
[335510680,1724296238552,-250.0,0.00018429,2]
[335510682,1724296238565,-250.0,0.00018479,2]
[335510684,1724296238575,-250.0,0.00018528,2]
[335510686,1724296238584,-466.23892192,0.0001855,2]
[335510688,1724296238594,-250.0,0.00018578,2]
[335510690,1724296238604,-250.0,0.00018628,2]
[335510692,1724296238614,-250.0,0.00018678,2]
[335510694,1724296238623,-250.0,0.00018728,2]
[335510696,1724296238632,-250.0,0.00018778,2]
[335510698,1724296238641,-250.0,0.00018828,2]
[335510700,1724296238651,-250.0,0.00018877,2]
[335510724,1724296238975,-250.0,0.00018927,2]
[335510727,1724296238992,-250.0,0.00018977,2]
[335510730,1724296239011,-250.0,0.00019027,2]
[335510733,1724296239027,-250.0,0.00019077,2]
[335510735,1724296239041,-250.0,0.00019127,2]
[335510737,1724296239051,-162.852486,0.00019178,2]
[335510739,1724296239066,-165.08622341,0.00019398,2]
[335510742,1724296239079,-2917.24124619,0.00019399,2]
[335510744,1724296239089,-154.81498776,0.00019452,2]
[335510746,1724296239100,-153.31373054,0.00019473,2]
[335510748,1724296239111,-450.16806322,0.00019473,2]
[335510750,1724296239122,-465.0619461,0.00019477,2]
[335510752,1724296239133,-773.64,0.00019477,3]
[335510754,1724296239143,-500.0,0.00019486,2]
[335510756,1724296239154,-491.95928719,0.00019486,2]
[335510757,1724296239164,-500.0,0.00019486,2]
[335510758,1724296239174,-500.0,0.00019486,2]
[335510760,1724296239185,-500.0,0.00019486,2]
[335510762,1724296239194,-500.0,0.00019486,2]
[335510764,1724296239204,-500.0,0.00019486,7]
[335510766,1724296239215,-500.0,0.00019486,2]
[335510768,1724296239224,-500.0,0.00019486,7]
[335510770,1724296239235,-500.0,0.00019486,7]
[335510772,1724296239244,-500.0,0.00019486,7]
[335510774,1724296239254,-500.0,0.00019486,7]
[335510776,1724296239263,-1930.46679923,0.00019487,2]
[335510778,1724296239277,-6722.74734562,0.00019487,2]
[335510781,1724296239288,-3020.0,0.00019487,2]
[335510783,1724296239301,-120960.10650215,0.00019487,2]
[335510785,1724296239310,-507.13,0.00019487,7]
[335510787,1724296239320,-562.87,0.00019487,7]
[335510789,1724296239330,-500.0,0.00019487,7]
[335510791,1724296239340,-2565.84,0.00019487,7]
[335510793,1724296239350,-758.41,0.00019487,7]
[335510795,1724296239360,-500.0,0.00019487,7]
[335510797,1724296239372,-10750.61,0.00019487,7]
[335510799,1724296239383,-874.83,0.00019487,7]
[335510801,1724296239393,-953.94,0.00019487,7]
[335510803,1724296239403,-1029.46,0.00019487,7]
[335510805,1724296239414,-500.0,0.00019487,7]
[335510807,1724296239423,-500.0,0.00019487,7]
[335510809,1724296239433,-922.98,0.00019487,7]
[335510811,1724296239442,-500.0,0.00019487,7]
[335510813,1724296239452,-4638.77,0.00019487,7]
[335510815,1724296239462,-4638.77,0.00019487,7]
[335510818,1724296239473,-847.4,0.00019487,7]
[335510820,1724296239483,-3611.27,0.00019487,7]
[335510822,1724296239493,-2513.14,0.00019487,7]
[335510824,1724296239503,-399.64224899,0.00019487,2]
[335510826,1724296239512,-500.0,0.00019487,2]
[335510828,1724296239521,-500.0,0.00019487,2]
[335510830,1724296239531,-500.0,0.00019487,2]
[335510832,1724296239541,-189.86934846,0.00019487,2]
[335510834,1724296239551,-500.0,0.00019487,2]
[335510836,1724296239560,-500.0,0.00019487,2]
[335510838,1724296239570,-500.0,0.00019487,2]
[335510840,1724296239579,-500.0,0.00019487,2]
[335510842,1724296239589,-500.0,0.00019487,2]
[335510844,1724296239598,-500.0,0.00019487,2]
[335510845,1724296239608,-500.0,0.00019487,2]
[335510847,1724296239617,-500.0,0.00019487,2]
[335510849,1724296239626,-503.3806567,0.00019487,2]
[335510851,1724296239635,-503.3806567,0.00019487,2]
[335510853,1724296239645,-503.3806567,0.00019487,2]
[335510855,1724296239654,-503.3806567,0.00019487,2]
[335510857,1724296239664,-503.3806567,0.00019487,2]
[335510859,1724296239673,-503.3806567,0.00019487,2]
[335510861,1724296239683,-503.3806567,0.00019487,2]
[335510863,1724296239693,-503.3806567,0.00019487,2]
[335510866,1724296239704,-503.3806567,0.00019487,2]
[335510868,1724296239714,-503.3806567,0.00019487,2]
[335510870,1724296239724,-503.3806567,0.00019487,2]
[335510872,1724296239736,-503.3806567,0.00019487,2]
[335510874,1724296239746,-503.3806567,0.00019487,2]
[335510876,1724296239757,-503.3806567,0.00019487,2]
[335510879,1724296239770,-576.69875815,0.00019487,2]
[335510881,1724296239779,-576.69875815,0.00019487,2]
[335510882,1724296239789,-576.69875815,0.00019487,2]
[335510884,1724296239799,-576.69875815,0.00019487,2]
[335510887,1724296239809,-151.0,0.00019488,2]
[335510889,1724296239818,-151.0,0.00019488,2]
[335510891,1724296239829,-171.358653,0.00019488,2]
[335510893,1724296239840,-171.358653,0.00019488,2]
[335510895,1724296239851,-151.0,0.00019488,2]
[335510897,1724296239862,-151.0,0.00019488,2]
[335510900,1724296239874,-151.0,0.00019488,2]
[335510902,1724296239886,-153.263102,0.00019488,2]
[335510904,1724296239896,-198949.98097,0.00019488,2]
[335510906,1724296239905,-4638.77,0.00019496,7]
[335510908,1724296239916,-500.0,0.00019497,7]
[335510910,1724296239926,-500.0,0.00019497,7]
[335510911,1724296239935,-5929.17,0.00019497,7]
[335510912,1724296239945,-500.0,0.00019497,7]
[335510915,1724296239955,-4213.85,0.00019497,7]
[335510916,1724296239965,-1276.23,0.00019497,7]
[335510919,1724296239976,-500.0,0.00019497,7]
[335510920,1724296239985,-10870.68,0.00019497,7]
[335510922,1724296239995,-500.0,0.00019497,7]
[335510924,1724296240005,-23123.91,0.00019497,7]
[335510926,1724296240015,-518.70667014,0.00019497,7]
[335510928,1724296240024,-500.0,0.00019497,7]
[335510931,1724296240033,-151.0,0.00019497,2]
[335510933,1724296240042,-151.0,0.00019497,2]
[335510935,1724296240052,-500.0,0.00019497,7]
[335510937,1724296240066,-2291.12,0.00019497,7]
[335510939,1724296240076,-151.0,0.00019497,2]
[335510941,1724296240086,-151.0,0.00019497,2]
[335510943,1724296240095,-521.23837596,0.00019497,7]
[335510945,1724296240107,-500.0,0.00019497,7]
[335510947,1724296240117,-151.694994,0.00019497,2]
[335510949,1724296240127,-153.261575,0.00019497,2]
[335510951,1724296240138,-2891.63,0.00019497,7]
[335510953,1724296240148,-500.0,0.00019497,7]
[335510955,1724296240158,-253.9775951,0.00019497,7]
[335510958,1724296240169,-2866.8,0.00019497,7]
[335510960,1724296240180,-1200.55,0.00019497,7]
[335510962,1724296240191,-659.04,0.00019497,7]
[335510964,1724296240202,-151.0,0.00019497,2]
[335510966,1724296240212,-151.526705,0.00019497,2]
[335510968,1724296240221,-500.0,0.00019497,7]
[335510970,1724296240232,-1808.83,0.00019497,7]
[335510972,1724296240242,-151.0,0.00019497,2]
[335510974,1724296240251,-151.0,0.00019497,2]
[335510976,1724296240262,-151.0,0.00019497,2]
[335510979,1724296240272,-151.0,0.00019497,2]
[335510981,1724296240282,-151.0,0.00019497,2]
[335510983,1724296240292,-151.0,0.00019497,2]
[335510985,1724296240302,-151.0,0.00019497,2]
[335510987,1724296240312,-151.0,0.00019497,2]
[335510989,1724296240322,-151.0,0.00019497,2]
[335510991,1724296240332,-151.0,0.00019497,2]
[335510993,1724296240341,-3415.01,0.00019497,7]
[335510995,1724296240350,-151.0,0.00019497,2]
[335510997,1724296240362,-165.396782,0.00019497,2]
[335511001,1724296240372,-500.0,0.00019497,7]
[335511004,1724296240381,-500.0,0.00019497,7]
[335511007,1724296240391,-2046.98,0.00019497,7]
[335511010,1724296240401,-151.0,0.00019497,2]
[335511013,1724296240410,-151.0,0.00019497,2]
[335511016,1724296240420,-151.0,0.00019497,2]
[335511018,1724296240429,-500.0,0.00019497,7]
[335511020,1724296240438,-175.524303,0.00019497,2]
[335511022,1724296240448,-500.0,0.00019497,7]
[335511024,1724296240458,-171.358653,0.00019497,2]
[335511026,1724296240467,-171.358653,0.00019497,2]
[335511028,1724296240477,-171.358653,0.00019497,2]
[335511030,1724296240487,-500.0,0.00019497,7]
[335511032,1724296240499,-275.010561,0.00019497,2]
[335511034,1724296240510,-275.010561,0.00019497,2]
[335511036,1724296240521,-275.010561,0.00019497,2]
[335511039,1724296240532,-171.358653,0.00019497,2]
[335511041,1724296240542,-171.358653,0.00019497,2]
[335511043,1724296240552,-171.358653,0.00019497,2]
[335511045,1724296240562,-275.010561,0.00019497,2]
[335511047,1724296240574,-275.010561,0.00019497,2]
[335511049,1724296240583,-275.010561,0.00019497,2]
[335511051,1724296240594,-500.0,0.00019497,7]
[335511053,1724296240603,-151.0,0.00019497,2]
[335511055,1724296240614,-151.0,0.00019497,2]
[335511057,1724296240624,-151.0,0.00019497,2]
[335511059,1724296240634,-762.37,0.00019497,7]
[335511062,1724296240659,-500.0,0.00019497,7]
[335511064,1724296240670,-151.0,0.00019497,2]
[335511066,1724296240680,-151.0,0.00019497,2]
[335511068,1724296240691,-151.0,0.00019497,2]
[335511071,1724296240704,-500.0,0.00019497,7]
[335511073,1724296240714,-4638.77,0.00019497,7]
[335511075,1724296240724,-4638.77,0.00019497,7]
[335511077,1724296240735,-4638.77,0.00019497,7]
[335511079,1724296240746,-4638.77,0.00019497,7]
[335511081,1724296240756,-2391.28,0.00019497,7]
[335511084,1724296240767,-4638.77,0.00019497,7]
[335511086,1724296240777,-500.0,0.00019497,7]
[335511088,1724296240787,-500.0,0.00019497,7]
[335511090,1724296240796,-500.0,0.00019498,7]
[335511092,1724296240806,-500.0,0.00019498,7]
[335511094,1724296240816,-502.78093537,0.00019498,7]
[335511096,1724296240825,-500.0,0.00019498,7]
[335511098,1724296240834,-2845.6,0.00019498,7]
[335511100,1724296240843,-519.63,0.00019498,7]
[335511102,1724296240852,-500.0,0.00019498,7]
[335511104,1724296240863,-500.0,0.00019498,7]
[335511106,1724296240872,-500.0,0.00019498,7]
[335511108,1724296240881,-500.0,0.00019498,7]
[335511110,1724296240891,-500.0,0.00019498,7]
[335511112,1724296240900,-500.0,0.00019498,7]
[335511114,1724296240910,-500.0,0.00019498,7]
[335511116,1724296240919,-500.0,0.00019498,7]
[335511118,1724296240929,-500.0,0.00019498,7]
[335511120,1724296240940,-500.0,0.00019498,7]
[335511122,1724296240949,-503.09759953,0.00019498,7]
[335511124,1724296240959,-500.0,0.00019498,7]
[335511126,1724296240968,-500.0,0.00019498,7]
[335511128,1724296240977,-500.0,0.00019498,7]
[335511131,1724296240986,-500.0,0.00019498,7]
[335511134,1724296240996,-526.95,0.00019498,7]
[335511136,1724296241005,-500.0,0.00019498,7]
[335511138,1724296241015,-1131.71,0.00019498,7]
[335511140,1724296241024,-500.0,0.00019498,7]
[335511142,1724296241034,-500.0,0.00019498,7]
[335511144,1724296241043,-518.40384036,0.00019498,7]
[335511146,1724296241053,-500.0,0.00019498,7]
[335511148,1724296241064,-500.0,0.00019498,7]
[335511150,1724296241076,-500.0,0.00019498,7]
[335511152,1724296241086,-500.0,0.00019498,7]
[335511155,1724296241096,-500.0,0.00019498,7]
[335511157,1724296241105,-150.3948424,0.00019498,7]
[335511159,1724296241116,-200.0,0.00019498,7]
[335511161,1724296241125,-500.0,0.00019498,7]
[335511162,1724296241134,-500.0,0.00019498,7]
[335511164,1724296241143,-500.0,0.00019498,7]
[335511166,1724296241154,-556.41,0.00019498,7]
[335511168,1724296241163,-503.48211204,0.00019498,7]
[335511170,1724296241172,-610.81143768,0.00019498,7]
[335511172,1724296241181,-500.0,0.00019498,7]
[335511174,1724296241190,-512.70363378,0.00019498,7]
[335511176,1724296241199,-500.0,0.00019498,7]
[335511178,1724296241209,-500.0,0.00019498,7]
[335511180,1724296241218,-2444.79,0.00019498,7]
[335511182,1724296241227,-500.0,0.00019498,7]
[335511184,1724296241237,-500.0,0.00019498,7]
[335511186,1724296241246,-522.37,0.00019498,7]
[335511188,1724296241256,-500.0,0.00019498,7]
[335511190,1724296241265,-500.95745786,0.00019498,7]
[335511192,1724296241275,-500.0,0.00019498,7]
[335511194,1724296241284,-586.8,0.00019498,7]
[335511196,1724296241293,-500.0,0.00019498,7]
[335511197,1724296241303,-500.0,0.00019498,7]
[335511198,1724296241312,-500.0,0.00019498,7]
[335511199,1724296241322,-500.0,0.00019498,7]
[335511200,1724296241331,-653.23,0.00019498,7]
[335511201,1724296241340,-500.0,0.00019498,7]
[335511202,1724296241349,-501.92554284,0.00019498,7]
[335511203,1724296241359,-664.45,0.00019498,7]
[335511204,1724296241368,-500.0,0.00019498,7]
[335511205,1724296241377,-500.0,0.00019498,7]
[335511206,1724296241387,-795.32,0.00019498,7]
[335511207,1724296241396,-500.0,0.00019498,7]
[335511209,1724296241406,-696.53,0.00019498,7]
[335511211,1724296241415,-519.3117229,0.00019498,7]
[335511213,1724296241424,-500.0,0.00019498,7]
[335511215,1724296241434,-500.0,0.00019498,7]
[335511217,1724296241443,-511.03395608,0.00019498,7]
[335511219,1724296241453,-500.0,0.00019498,7]
[335511221,1724296241463,-539.58,0.00019498,7]
[335511223,1724296241472,-500.0,0.00019498,7]
[335511225,1724296241482,-500.0,0.00019498,7]
[335511227,1724296241491,-853.45,0.00019498,7]
[335511229,1724296241501,-500.0,0.00019498,7]
[335511231,1724296241511,-500.0,0.00019498,7]
[335511234,1724296241523,-500.0,0.00019498,7]
[335511236,1724296241533,-758.51,0.00019498,7]
[335511238,1724296241544,-500.0,0.00019498,7]
[335511240,1724296241554,-500.0,0.00019498,7]
[335511242,1724296241564,-500.0,0.00019498,7]
[335511244,1724296241575,-611.74,0.00019498,7]
[335511246,1724296241584,-500.0,0.00019498,7]
[335511248,1724296241594,-500.0,0.00019498,7]
[335511250,1724296241603,-500.0,0.00019498,7]
[335511252,1724296241614,-500.0,0.00019498,7]
[335511255,1724296241624,-500.0,0.00019498,7]
[335511257,1724296241635,-459.9988217,0.00019498,7]
[335511259,1724296241646,-500.0,0.00019498,7]
[335511261,1724296241657,-500.0,0.00019498,7]
[335511263,1724296241667,-500.0,0.00019498,7]
[335511265,1724296241678,-500.0,0.00019498,7]
[335511267,1724296241688,-500.0,0.00019498,7]
[335511270,1724296241698,-500.0,0.00019498,7]
[335511272,1724296241708,-500.0,0.00019498,7]
[335511274,1724296241718,-555.62,0.00019498,7]
[335511276,1724296241729,-500.0,0.00019498,7]
[335511278,1724296241739,-532.86,0.00019498,7]
[335511280,1724296241750,-153.129118,0.00019498,2]
[335511282,1724296241760,-229.17503676,0.00019498,7]
[335511284,1724296241770,-505.56054822,0.00019498,7]
[335511286,1724296241780,-500.0,0.00019498,7]
[335511288,1724296241790,-500.0,0.00019498,7]
[335511290,1724296241800,-151.0,0.00019498,2]
[335511293,1724296241812,-151.0,0.00019498,2]
[335511295,1724296241822,-153.343443,0.00019498,2]
[335511297,1724296241835,-500.0,0.00019498,7]
[335511299,1724296241845,-500.0,0.00019498,7]
[335511301,1724296241855,-500.0,0.00019498,7]
[335511304,1724296241868,-501.02889922,0.00019498,7]
[335511306,1724296241879,-500.0,0.00019498,7]
[335511308,1724296241891,-500.0,0.00019498,7]
[335511310,1724296241902,-500.0,0.00019498,7]
[335511312,1724296241911,-500.0,0.00019498,7]
[335511315,1724296241923,-990.24,0.00019498,7]
[335511317,1724296241934,-500.0,0.00019498,7]
[335511319,1724296241944,-151.802973,0.00019498,2]
[335511321,1724296241957,-813.09,0.00019498,7]
[335511323,1724296241968,-500.0,0.00019498,7]
[335511325,1724296241978,-500.0,0.00019498,7]
[335511327,1724296241989,-500.0,0.00019498,7]
[335511330,1724296242002,-500.0,0.00019498,7]
[335511332,1724296242013,-500.0,0.00019498,7]
[335511334,1724296242023,-500.0,0.00019498,7]
[335511336,1724296242032,-500.0,0.00019498,7]
[335511338,1724296242042,-500.0,0.00019498,7]
[335511340,1724296242052,-500.0,0.00019498,7]
[335511342,1724296242064,-1340.95,0.00019498,7]
[335511344,1724296242077,-500.75675477,0.00019498,7]
[335511346,1724296242087,-500.0,0.00019498,7]
[335511348,1724296242097,-500.0,0.00019498,7]
[335511351,1724296242110,-1000.0,0.00019498,7]
[335511353,1724296242120,-500.0,0.00019498,7]
[335511355,1724296242129,-1094.98,0.00019498,7]
[335511357,1724296242138,-500.0,0.00019498,7]
[335511359,1724296242150,-500.0,0.00019498,7]
[335511361,1724296242161,-500.0,0.00019498,7]
[335511363,1724296242171,-1551.13,0.00019498,7]
[335511365,1724296242181,-500.0,0.00019498,7]
[335511367,1724296242192,-500.0,0.00019498,7]
[335511369,1724296242204,-500.0,0.00019498,7]
[335511371,1724296242215,-500.0,0.00019498,7]
[335511374,1724296242226,-197.741542,0.00019498,2]
[335511376,1724296242237,-500.0,0.00019498,7]
[335511378,1724296242248,-197.741542,0.00019498,2]
[335511380,1724296242258,-197.741542,0.00019498,2]
[335511382,1724296242268,-197.741542,0.00019498,2]
[335511384,1724296242279,-197.741542,0.00019498,2]
[335511386,1724296242289,-500.0,0.00019498,7]
[335511388,1724296242299,-500.0,0.00019498,7]
[335511390,1724296242309,-197.741542,0.00019498,2]
[335511392,1724296242318,-197.741542,0.00019498,2]
[335511394,1724296242328,-197.741542,0.00019498,2]
[335511396,1724296242338,-197.741542,0.00019498,2]
[335511398,1724296242348,-197.741542,0.00019498,2]
[335511416,1724296242508,-500.0,0.00019498,7]
[335511418,1724296242519,-500.0,0.00019498,7]
[335511420,1724296242529,-162.126023,0.00019498,2]
[335511422,1724296242540,-500.0,0.00019498,7]
[335511424,1724296242550,-500.0,0.00019498,7]
[335511426,1724296242560,-500.0,0.00019498,7]
[335511428,1724296242571,-151.0,0.00019498,2]
[335511430,1724296242582,-160.4606,0.00019498,2]
[335511432,1724296242593,-500.0,0.00019498,7]
[335511434,1724296242602,-278.291675,0.00019498,2]
[335511437,1724296242613,-278.291675,0.00019498,2]
[335511439,1724296242623,-278.291675,0.00019498,2]
[335511441,1724296242633,-278.291675,0.00019498,2]
[335511443,1724296242647,-500.0,0.00019498,7]
[335511445,1724296242658,-278.291675,0.00019498,2]
[335511447,1724296242667,-154.596156,0.00019498,2]
[335511449,1724296242679,-278.291675,0.00019498,2]
[335511451,1724296242691,-278.291675,0.00019498,2]
[335511453,1724296242708,-278.291675,0.00019498,2]
[335511456,1724296242717,-500.0,0.00019498,7]
[335511458,1724296242727,-151.0,0.00019498,2]
[335511460,1724296242738,-151.0,0.00019498,2]
[335511462,1724296242747,-278.291675,0.00019498,2]
[335511464,1724296242758,-151.0,0.00019498,2]
[335511467,1724296242768,-278.291675,0.00019498,2]
[335511469,1724296242777,-151.0,0.00019498,2]
[335511471,1724296242787,-278.291675,0.00019498,2]
[335511473,1724296242797,-151.0,0.00019498,2]
[335511475,1724296242807,-278.291675,0.00019498,2]
[335511477,1724296242819,-500.0,0.00019498,7]
[335511479,1724296242828,-278.291675,0.00019498,2]
[335511481,1724296242838,-278.291675,0.00019498,2]
[335511483,1724296242849,-278.291675,0.00019498,2]
[335511485,1724296242859,-278.291675,0.00019498,2]
[335511487,1724296242869,-151.0,0.00019498,2]
[335511490,1724296242880,-151.0,0.00019498,2]
[335511492,1724296242891,-151.0,0.00019498,2]
[335511494,1724296242901,-500.0,0.00019498,7]
[335511496,1724296242911,-151.0,0.00019498,2]
[335511498,1724296242921,-151.0,0.00019498,2]
[335511500,1724296242932,-151.0,0.00019498,2]
[335511502,1724296242941,-151.0,0.00019498,2]
[335511504,1724296242951,-500.0,0.00019498,7]
[335511506,1724296242961,-151.0,0.00019498,2]
[335511508,1724296242971,-151.0,0.00019498,2]
[335511510,1724296242981,-151.0,0.00019498,2]
[335511512,1724296242990,-151.0,0.00019498,2]
[335511514,1724296243000,-163.818434,0.00019498,2]
[335511516,1724296243010,-153.948042,0.00019498,2]
[335511519,1724296243021,-500.0,0.00019498,7]
[335511521,1724296243030,-3903.17,0.00019498,7]
[335511523,1724296243040,-500.0,0.00019498,7]
[335511525,1724296243050,-501.11993912,0.00019498,7]
[335511527,1724296243060,-500.0,0.00019498,7]
[335511529,1724296243073,-500.0,0.00019498,7]
[335511532,1724296243082,-500.0,0.00019498,7]
[335511535,1724296243092,-260.94950624,0.00019498,7]
[335511538,1724296243102,-500.0,0.00019498,7]
[335511541,1724296243112,-500.0,0.00019498,7]
[335511544,1724296243121,-549.21,0.00019498,7]
[335511547,1724296243130,-199.528847,0.00019498,2]
[335511550,1724296243148,-503.10008164,0.00019498,7]
[335511553,1724296243163,-500.0,0.00019498,7]
[335511556,1724296243172,-500.0,0.00019498,7]
[335511559,1724296243181,-500.0,0.00019498,7]
[335511562,1724296243191,-500.0,0.00019498,7]
[335511566,1724296243202,-500.0,0.00019498,7]
[335511568,1724296243211,-500.0,0.00019498,7]
[335511570,1724296243221,-500.0,0.00019498,7]
[335511572,1724296243231,-501.27091838,0.00019498,7]
[335511574,1724296243240,-500.0,0.00019498,7]
[335511576,1724296243250,-500.0,0.00019498,7]
[335511578,1724296243261,-500.0,0.00019498,7]
[335511580,1724296243270,-500.0,0.00019498,7]
[335511582,1724296243280,-500.0,0.00019498,7]
[335511584,1724296243290,-500.0,0.00019498,7]
[335511586,1724296243300,-295.48877479,0.00019498,7]
[335511588,1724296243310,-151.0,0.00019498,2]
[335511590,1724296243319,-500.0,0.00019498,7]
[335511592,1724296243329,-151.0,0.00019498,2]
[335511594,1724296243339,-151.0,0.00019498,2]
[335511596,1724296243349,-151.0,0.00019498,2]
[335511598,1724296243359,-151.0,0.00019498,2]
[335511601,1724296243369,-151.0,0.00019498,2]
[335511603,1724296243379,-156.244805,0.00019498,2]
[335511605,1724296243394,-151.0,0.00019498,2]
[335511607,1724296243404,-158.830095,0.00019498,2]
[335511609,1724296243414,-151.0,0.00019498,2]
[335511611,1724296243423,-151.0,0.00019498,2]
[335511613,1724296243433,-153.684269,0.00019498,2]
[335511615,1724296243445,-500.0,0.00019498,7]
[335511617,1724296243455,-690.99,0.00019498,7]
[335511619,1724296243464,-500.0,0.00019498,7]
[335511621,1724296243474,-287.00776487,0.00019498,7]
[335511623,1724296243483,-909.85,0.00019498,7]
[335511625,1724296243493,-500.0,0.00019498,7]
[335511627,1724296243502,-500.0,0.00019498,7]
[335511629,1724296243511,-500.0,0.00019498,7]
[335511631,1724296243521,-13330.48,0.00019498,7]
[335511633,1724296243531,-500.0,0.00019498,7]
[335511635,1724296243541,-206.84621049,0.00019498,7]
[335511637,1724296243550,-504.31993508,0.00019498,7]
[335511639,1724296243559,-193.29800878,0.00019498,7]
[335511641,1724296243569,-151.0,0.00019498,2]
[335511643,1724296243578,-509.04748953,0.00019498,7]
[335511645,1724296243588,-151.0,0.00019498,2]
[335511646,1724296243597,-151.0,0.00019498,2]
[335511647,1724296243606,-151.0,0.00019498,2]
[335511648,1724296243616,-184.841128,0.00019498,2]
[335511649,1724296243628,-500.0,0.00019498,7]
[335511650,1724296243641,-500.0,0.00019498,7]
[335511651,1724296243651,-151.0,0.00019498,2]
[335511652,1724296243660,-504.76938422,0.00019498,7]
[335511653,1724296243669,-151.0,0.00019498,2]
[335511654,1724296243679,-152.932037,0.00019498,2]
[335511656,1724296243689,-151.0,0.00019498,2]
[335511658,1724296243700,-174.419798,0.00019498,2]
[335511661,1724296243710,-500.0,0.00019498,7]
[335511663,1724296243720,-500.0,0.00019498,7]
[335511665,1724296243730,-678.69,0.00019498,7]
[335511667,1724296243739,-152.347355,0.00019498,2]
[335511669,1724296243749,-152.598414,0.00019498,2]
[335511671,1724296243760,-151.0,0.00019498,2]
[335511673,1724296243770,-151.0,0.00019498,2]
[335511675,1724296243781,-500.0,0.00019498,7]
[335511677,1724296243791,-151.0,0.00019498,2]
[335511680,1724296243801,-500.0,0.00019498,7]
[335511682,1724296243810,-500.0,0.00019498,7]
[335511684,1724296243820,-1250.39,0.00019498,7]
[335511686,1724296243830,-151.0,0.00019498,2]
[335511688,1724296243839,-151.0,0.00019498,2]
[335511690,1724296243850,-500.0,0.00019498,7]
[335511692,1724296243859,-151.0,0.00019498,2]
[335511694,1724296243869,-6126.91,0.00019498,7]
[335511696,1724296243878,-243.709404,0.00019498,2]
[335511698,1724296243888,-500.0,0.00019498,7]
[335511700,1724296243898,-500.0,0.00019498,7]
[335511702,1724296243908,-344.41359493,0.00019498,7]
[335511704,1724296243921,-503.22063749,0.00019498,7]
[335511707,1724296243933,-151.0,0.00019498,2]
[335511709,1724296243944,-151.0,0.00019498,2]
[335511711,1724296243954,-500.0,0.00019498,7]
[335511713,1724296243964,-500.0,0.00019498,7]
[335511715,1724296243974,-3045.82,0.00019498,7]
[335511717,1724296243986,-500.0,0.00019498,7]
[335511720,1724296243997,-500.0,0.00019498,7]
[335511722,1724296244007,-500.0,0.00019498,7]
[335511724,1724296244017,-500.0,0.00019498,7]
[335511726,1724296244030,-652.97,0.00019498,7]
[335511728,1724296244040,-500.0,0.00019498,7]
[335511730,1724296244051,-500.0,0.00019498,7]